Departmental family,Entity,Date Paid,Expense type,Expense Area,Supplier,Transaction Number, Amount , Description , Supplier Type , Expenditure Type 
UK Statistics Authority,Office for National Statistics,02-Jan-19,Contractors,Economic Statistics Transformation,Mango Solutions,118094,"9,360.00", Information Mangement Services, SME , Programme 
UK Statistics Authority,Office for National Statistics,02-Jan-19,Contractors,National Accounts and Economic Statistics,Mango Solutions,118094,"19,890.00", Information Mangement Services, SME , Programme 
UK Statistics Authority,Office for National Statistics,02-Jan-19,Incentives,Operations,Park Retail Ltd,118095,"23,404.43", Social Surveys Incentive Vouchers, Large , Programme 
UK Statistics Authority,Office for National Statistics,02-Jan-19,Incentives,Operations,Park Retail Ltd,118095,"18,393.24", Social Surveys Incentive Vouchers, Large , Programme 
UK Statistics Authority,Office for National Statistics,02-Jan-19,Incentives,Operations,Park Retail Ltd,118095,"7,006.30", Social Surveys Incentive Vouchers, Large , Programme 
UK Statistics Authority,Office for National Statistics,02-Jan-19,Incentives,Operations,Park Retail Ltd,118095,"7,522.80", Social Surveys Incentive Vouchers, Large , Programme 
UK Statistics Authority,Office for National Statistics,02-Jan-19,Incentives,Operations,Park Retail Ltd,118095,"25,194.13", Social Surveys Incentive Vouchers, Large , Programme 
UK Statistics Authority,Office for National Statistics,02-Jan-19,Contractors,Economic Statistics Transformation,Concept Information Technology Ltd T/A Concept Resourcing,118096,"3,778.24", Information Management Services, Large , Programme 
UK Statistics Authority,Office for National Statistics,02-Jan-19,Contractors,Economic Statistics Transformation,Concept Information Technology Ltd T/A Concept Resourcing,118096,"3,671.05", Information Management Services, Large , Programme 
UK Statistics Authority,Office for National Statistics,02-Jan-19,Contractors,National Accounts and Economic Statistics,Concept Information Technology Ltd T/A Concept Resourcing,118096,"10,800.00", Information Management Services, Large , Programme 
UK Statistics Authority,Office for National Statistics,02-Jan-19,Short-Term Contract and Agency Staff,Economic Statistics Transformation,Concept Information Technology Ltd T/A Concept Resourcing,118096,"3,965.81", Information Management Services, Large , Programme 
UK Statistics Authority,Office for National Statistics,02-Jan-19,Short-Term Contract and Agency Staff,Economic Statistics Transformation,Concept Information Technology Ltd T/A Concept Resourcing,118096,"4,884.00", Information Management Services, Large , Programme 
UK Statistics Authority,Office for National Statistics,02-Jan-19,Short-Term Contract and Agency Staff,Economic Statistics Transformation,Concept Information Technology Ltd T/A Concept Resourcing,118096,"3,952.42", Information Management Services, Large , Programme 
UK Statistics Authority,Office for National Statistics,02-Jan-19,Short-Term Contract and Agency Staff,National Accounts and Economic Statistics,Concept Information Technology Ltd T/A Concept Resourcing,118096,"2,474.08", Information Management Services, Large , Programme 
UK Statistics Authority,Office for National Statistics,03-Jan-19,ICT,Digital Services and Technology,E Synergy Solutions,118608,"12,240.00", Information Management Services , SME , Programme 
UK Statistics Authority,Office for National Statistics,03-Jan-19,IT Contractual,Digital Services and Technology,E Synergy Solutions,118608,"201,102.00", Information Management Services , SME , Programme 
UK Statistics Authority,Office for National Statistics,03-Jan-19,IT Contractual,Digital Services and Technology,E Synergy Solutions,118608,"21,720.00", Information Management Services , SME , Programme 
UK Statistics Authority,Office for National Statistics,03-Jan-19,IT Contractual,Digital Services and Technology,Concept Information Technology Ltd T/A Concept Resourcing,118609,"12,084.00", Information Management Services, Large , Programme 
UK Statistics Authority,Office for National Statistics,03-Jan-19,IT Contractual,Digital Services and Technology,Concept Information Technology Ltd T/A Concept Resourcing,118609,"18,000.00", Information Management Services, Large , Programme 
UK Statistics Authority,Office for National Statistics,03-Jan-19,Short-Term Contract and Agency Staff,Public Policy Analysis,Concept Information Technology Ltd T/A Concept Resourcing,118609,"3,965.81", Information Management Services, Large , Programme 
UK Statistics Authority,Office for National Statistics,03-Jan-19,Oracle Cloud ERP Licences,"Finance, Planning and Performance",SCC,118612,"66,171.92", Oracle Cloud and Information Management Services , Large , Programme 
UK Statistics Authority,Office for National Statistics,04-Jan-19,Contractors,Digital Services and Technology,LA International,118634,"19,953.60", Information Management Services, SME , Programme 
UK Statistics Authority,Office for National Statistics,04-Jan-19,Contractors,National Accounts and Economic Statistics,LA International,118634,"3,203.88", Information Management Services, SME , Programme 
UK Statistics Authority,Office for National Statistics,04-Jan-19,ICT,Policy and Communication,LA International,118634,"10,572.66", Information Management Services, SME , Programme 
UK Statistics Authority,Office for National Statistics,04-Jan-19,ICT,Digital Services and Technology,QA Ltd,118636,"14,508.00", Information Management Services, Large , Programme 
UK Statistics Authority,Office for National Statistics,04-Jan-19,IT Contractual,Digital Services and Technology,QA Ltd,118636,"135,720.00", Information Management Services, Large , Programme 
UK Statistics Authority,Office for National Statistics,04-Jan-19,Contractors,Digital Services and Technology,Parity Resources Limited,118637,"3,524.40", Information Management Services, Large , Programme 
UK Statistics Authority,Office for National Statistics,04-Jan-19,Contractors,Digital Services and Technology,Parity Resources Limited,118637,"13,617.00", Information Management Services, Large , Programme 
UK Statistics Authority,Office for National Statistics,04-Jan-19,Contractors,Digital Services and Technology,Parity Resources Limited,118637,"13,841.28", Information Management Services, Large , Programme 
UK Statistics Authority,Office for National Statistics,04-Jan-19,IT Contractual,Digital Services and Technology,Parity Resources Limited,118637,"18,326.88", Information Management Services, Large , Programme 
UK Statistics Authority,Office for National Statistics,07-Jan-19,IT Management and Change,Digital Services and Technology,Phoenix Software Ltd,118839,"72,648.00", License and Software Maintenance , SME , Programme 
UK Statistics Authority,Office for National Statistics,07-Jan-19,ICT,Digital Services and Technology,ServiceNow,118840,"102,389.76", Software Licence and Maintenance, Large , Programme 
UK Statistics Authority,Office for National Statistics,07-Jan-19,ICT,Digital Services and Technology,Comparex UK Ltd,118841,"25,836.72", Information Management Services, Large , Programme 
UK Statistics Authority,Office for National Statistics,07-Jan-19,ICT,Digital Services and Technology,Amazon Web Services Inc,118844,"60,492.15", Web Services, Large , Programme 
UK Statistics Authority,Office for National Statistics,08-Jan-19,Surveys,Public Policy Analysis,Kantar Public,119129,"438,933.46", Statistical Services, SME , Programme 
UK Statistics Authority,Office for National Statistics,08-Jan-19,Travel and Subsistence,"Finance, Planning and Performance",Calder World of Travel,119138,"109,043.80", Travel and Accommodation Booking Service , SME , Programme 
UK Statistics Authority,Office for National Statistics,08-Jan-19,Childcare Services,"Finance, Planning and Performance",Computershare Voucher Services,119144,"39,929.90", Childcare Vouchers , Large , Programme 
UK Statistics Authority,Office for National Statistics,08-Jan-19,ICT,Digital Services and Technology,Strategic Blue Services Limited,119150,"27,264.00", Cloud Services, SME , Programme 
UK Statistics Authority,Office for National Statistics,09-Jan-19,IT Management and Change,Digital Services and Technology,Computacenter (UK) Limited,119452,"204,431.93", Information Management Services , Large , Programme 
UK Statistics Authority,Office for National Statistics,10-Jan-19,Surveys,National Accounts and Economic Statistics,Kantar Public,119461,"193,128.90", Statistical Services, SME , Programme 
UK Statistics Authority,Office for National Statistics,10-Jan-19,VAT Payment,"Finance, Planning and Performance",HM Revenue & Customs,119468,"100,454.62", Retrospective  VAT Liability, Large , Programme 
UK Statistics Authority,Office for National Statistics,10-Jan-19,Procurement Cards,"Finance, Planning and Performance",Royal Bank of Scotland,119482,"28,945.70", Multiple Procurement Card Purchases  , Large , Programme 
UK Statistics Authority,Office for National Statistics,10-Jan-19,Stationery,"Finance, Planning and Performance",Royal Bank of Scotland,119482,"5,862.46", Multiple Stationery Procurement Card Purchases  , Large , Programme 
UK Statistics Authority,Office for National Statistics,10-Jan-19,Travel and Subsistence,"Finance, Planning and Performance",Royal Bank of Scotland,119482,"48,717.31", Multiple Car Hire Procurement Card Purchases  , Large , Programme 
UK Statistics Authority,Office for National Statistics,10-Jan-19,ICT,Digital Services and Technology,Amazon Web Services Inc,119485,"40,615.82", Web Services, Large , Programme 
UK Statistics Authority,Office for National Statistics,11-Jan-19,IT Contractual,Digital Services and Technology,E Synergy Solutions,119489,"14,190.00", Information Management Services , SME , Programme 
UK Statistics Authority,Office for National Statistics,11-Jan-19,IT Contractual,People and Business Services,E Synergy Solutions,119489,"14,868.00", Information Management Services , SME , Programme 
UK Statistics Authority,Office for National Statistics,11-Jan-19,Contractors,Economic Statistics - Transformation,Parity Resources Limited,119499,"8,484.59", Information Management Services, Large , Programme 
UK Statistics Authority,Office for National Statistics,11-Jan-19,Contractors,Public Population and Policy - Operations,Parity Resources Limited,119499,"11,534.40", Information Management Services, Large , Programme 
UK Statistics Authority,Office for National Statistics,11-Jan-19,Contractors,Public Population and Policy - Transformation,Parity Resources Limited,119499,"16,573.14", Information Management Services, Large , Programme 
UK Statistics Authority,Office for National Statistics,15-Jan-19,Contractors,Policy and Communication,Swirrl IT Ltd,119985,166.8, Information Management Services, SME , Programme 
UK Statistics Authority,Office for National Statistics,15-Jan-19,IT Contractual,Policy and Communication,Swirrl IT Ltd,119985,"68,664.00", Information Management Services, SME , Programme 
UK Statistics Authority,Office for National Statistics,15-Jan-19,Facilities Management Contract Payments,"Finance, Planning and Performance",Vinci Construction UK Limited,119986,"83,615.19", Facility Management Services, Large , Programme 
UK Statistics Authority,Office for National Statistics,15-Jan-19,Consultancy,Economic Statistics - Transformation,NIESR,119994,"409,085.46", Information Mangement Services, SME , Programme 
UK Statistics Authority,Office for National Statistics,15-Jan-19,Contractors,People and Business Services,LA International,119997,"27,387.71", Information Management Services, SME , Programme 
UK Statistics Authority,Office for National Statistics,15-Jan-19,Contractors,Public Population and Policy - Transformation,LA International,119997,"19,030.79", Information Management Services, SME , Programme 
UK Statistics Authority,Office for National Statistics,16-Jan-19,Travel and Subsistence,"Finance, Planning and Performance",Corporate Travel Management ,120005,"51,564.40", Travel and Accommodation Booking Service , SME , Programme 
UK Statistics Authority,Office for National Statistics,16-Jan-19,Office,Digital Services and Technology,Lexmark International Ltd,120008,"29,474.33", Information Management Services, Large , Programme 
UK Statistics Authority,Office for National Statistics,16-Jan-19,Surveys,National Accounts and Economic Statistics,IFF Research,120020,"76,875.60", Statistical Services, Large , Programme 
UK Statistics Authority,Office for National Statistics,16-Jan-19,Buildings Insurance,People and Business Services,James Andrew RSW Ltd,120021,"4,527.77", Drummond Gate Rent, SME , Programme 
UK Statistics Authority,Office for National Statistics,16-Jan-19,Rent Payable,People and Business Services,James Andrew RSW Ltd,120021,"256,937.23", Drummond Gate Rent, SME , Programme 
UK Statistics Authority,Office for National Statistics,16-Jan-19,Electricity,People and Business Services,EDF Energy,30001179,"27,597.39", Electricity Charges Titchfield, Large , Programme 
UK Statistics Authority,Office for National Statistics,16-Jan-19,Electricity,People and Business Services,EDF Energy,30001180,"29,208.90", Electricity Charges Newport, Large , Programme 
UK Statistics Authority,Office for National Statistics,17-Jan-19,Training and Development,Digital Services and Technology,Armakuni Ltd,120394,"62,647.98", Information Management Services , SME , Programme 
UK Statistics Authority,Office for National Statistics,18-Jan-19,Newport Vouchers,Survey Management,NatCen Social Research,120401,"13,374.81", Statistical Services, Large , Programme 
UK Statistics Authority,Office for National Statistics,18-Jan-19,Surveys,Public Population and Policy - Operations,NatCen Social Research,120401,"237,186.90", Statistical Services, Large , Programme 
UK Statistics Authority,Office for National Statistics,18-Jan-19,Contractors,Digital Services and Technology,Parity Resources Limited,120419,"1,666.08", Information Management Services, Large , Programme 
UK Statistics Authority,Office for National Statistics,18-Jan-19,Contractors,"Methods, Data and Research",Parity Resources Limited,120419,"26,785.44", Information Management Services, Large , Programme 
UK Statistics Authority,Office for National Statistics,18-Jan-19,ICT,"Methods, Data and Research",Parity Resources Limited,120419,"2,114.64", Information Management Services, Large , Programme 
UK Statistics Authority,Office for National Statistics,18-Jan-19,Short-Term Contract and Agency Staff,Public Population and Policy - Transformation,Parity Resources Limited,120419,"4,830.72", Information Management Services, Large , Programme 
UK Statistics Authority,Office for National Statistics,18-Jan-19,Information Technology,Public Population and Policy - Operations,Leidos Innovations UK Limited,120430,"5,031,460.80", Census Questionaire Management Contract, Large , Programme 
UK Statistics Authority,Office for National Statistics,21-Jan-19,Surveys,National Accounts and Economic Statistics,Mintel International Group Ltd,120711,"49,200.00", Statistical Services, Large , Programme 
UK Statistics Authority,Office for National Statistics,21-Jan-19,Specialist User Software and Hardware,Digital Services and Technology,CDW Limited,120717,"110,400.00", Computer Hardware, Large , Programme 
UK Statistics Authority,Office for National Statistics,21-Jan-19,IT Management and Change,Digital Services and Technology,Stone Computers,120718,"54,216.00", Information Management Services, Large , Programme 
UK Statistics Authority,Office for National Statistics,22-Jan-19,IT Contractual,Digital Services and Technology,Empiric Solutions Limited,120874,"11,700.00", Information Mangement Services, Large , Programme 
UK Statistics Authority,Office for National Statistics,22-Jan-19,IT Contractual,Digital Services and Technology,Empiric Solutions Limited,120874,"14,040.00", Information Mangement Services, Large , Programme 
UK Statistics Authority,Office for National Statistics,23-Jan-19,Accommodation and Building Management,Public Population and Policy - Operations,Heathrow Airport,120897,"28,145.27", Rent , Large , Programme 
UK Statistics Authority,Office for National Statistics,23-Jan-19,Contractors,Public Population and Policy - Transformation,Certes Computing Ltd,120900,"32,436.17", Information Management Services , SME , Programme 
UK Statistics Authority,Office for National Statistics,23-Jan-19,Contractors,Public Population and Policy - Transformation,Certes Computing Ltd,120900,"9,030.60", Information Management Services , SME , Programme 
UK Statistics Authority,Office for National Statistics,23-Jan-19,Contractors,Digital Services and Technology,LA International,120901,"4,346.40", Information Management Services, SME , Programme 
UK Statistics Authority,Office for National Statistics,23-Jan-19,Contractors,National Accounts and Economic Statistics,LA International,120901,"17,044.56", Information Management Services, SME , Programme 
UK Statistics Authority,Office for National Statistics,23-Jan-19,Contractors,Public Population and Policy - Transformation,LA International,120901,"4,933.91", Information Management Services, SME , Programme 
UK Statistics Authority,Office for National Statistics,23-Jan-19,Contractors,Digital Services and Technology,Parity Resources Limited,120907,"8,640.00", Information Management Services, Large , Programme 
UK Statistics Authority,Office for National Statistics,23-Jan-19,Contractors,Digital Services and Technology,Parity Resources Limited,120907,"14,309.87", Information Management Services, Large , Programme 
UK Statistics Authority,Office for National Statistics,23-Jan-19,Contractors,Economic Statistics Transformation,Parity Resources Limited,120907,"5,454.38", Information Management Services, Large , Programme 
UK Statistics Authority,Office for National Statistics,23-Jan-19,Contractors,"Methods, Data and Research",Parity Resources Limited,120907,"8,462.88", Information Management Services, Large , Programme 
UK Statistics Authority,Office for National Statistics,23-Jan-19,Contractors,"Methods, Data and Research",Parity Resources Limited,120907,"2,306.88", Information Management Services, Large , Programme 
UK Statistics Authority,Office for National Statistics,23-Jan-19,Contractors,Public Population and Policy - Operations,Parity Resources Limited,120907,"8,971.20", Information Management Services, Large , Programme 
UK Statistics Authority,Office for National Statistics,23-Jan-19,Contractors,Public Population and Policy - Operations,Parity Resources Limited,120907,"7,209.00", Information Management Services, Large , Programme 
UK Statistics Authority,Office for National Statistics,23-Jan-19,Contractors,Public Population and Policy - Transformation,Parity Resources Limited,120907,"27,586.44", Information Management Services, Large , Programme 
UK Statistics Authority,Office for National Statistics,23-Jan-19,ICT,Policy and Communication,Parity Resources Limited,120907,"7,689.60", Information Management Services, Large , Programme 
UK Statistics Authority,Office for National Statistics,23-Jan-19,IT Contractual,Digital Services and Technology,Parity Resources Limited,120907,"8,650.80", Information Management Services, Large , Programme 
UK Statistics Authority,Office for National Statistics,23-Jan-19,Short-Term Contract and Agency Staff,National Accounts and Economic Statistics,Parity Resources Limited,120907,"1,097.18", Information Management Services, Large , Programme 
UK Statistics Authority,Office for National Statistics,23-Jan-19,Short-Term Contract and Agency Staff,People and Business Services,Parity Resources Limited,120907,"2,120.54", Information Management Services, Large , Programme 
UK Statistics Authority,Office for National Statistics,23-Jan-19,Short-Term Contract and Agency Staff,Public Population and Policy - Operations,Parity Resources Limited,120907,"3,309.76", Information Management Services, Large , Programme 
UK Statistics Authority,Office for National Statistics,23-Jan-19,Specialist User Software and Hardware,Digital Services and Technology,Cysure Limited,120916,"68,914.30", Information Management Services, SME , Programme 
UK Statistics Authority,Office for National Statistics,24-Jan-19,IT Contractual,Digital Services and Technology,E Synergy Solutions,120955,"22,020.00", Information Management Services , SME , Programme 
UK Statistics Authority,Office for National Statistics,24-Jan-19,IT Contractual,Digital Services and Technology,E Synergy Solutions,120955,"8,100.00", Information Management Services , SME , Programme 
UK Statistics Authority,Office for National Statistics,24-Jan-19,IT Contractual,Policy and Communication,E Synergy Solutions,120955,"6,091.92", Information Management Services , SME , Programme 
UK Statistics Authority,Office for National Statistics,24-Jan-19,Contractors,Economic Statistics - Transformation,Concept Information Technology Ltd T/A Concept Resourcing,120958,"3,965.81", Information Management Services, Large , Programme 
UK Statistics Authority,Office for National Statistics,24-Jan-19,Contractors,Economic Statistics - Transformation,Concept Information Technology Ltd T/A Concept Resourcing,120958,"3,939.01", Information Management Services, Large , Programme 
UK Statistics Authority,Office for National Statistics,24-Jan-19,Contractors,Economic Statistics - Transformation,Concept Information Technology Ltd T/A Concept Resourcing,120958,"7,508.25", Information Management Services, Large , Programme 
UK Statistics Authority,Office for National Statistics,24-Jan-19,Contractors,National Accounts and Economic Statistics,Concept Information Technology Ltd T/A Concept Resourcing,120958,"2,974.36", Information Management Services, Large , Programme 
UK Statistics Authority,Office for National Statistics,24-Jan-19,Contractors,National Accounts and Economic Statistics,Concept Information Technology Ltd T/A Concept Resourcing,120958,"10,260.00", Information Management Services, Large , Programme 
UK Statistics Authority,Office for National Statistics,24-Jan-19,Contractors,National Accounts and Economic Statistics,Concept Information Technology Ltd T/A Concept Resourcing,120958,"3,577.27", Information Management Services, Large , Programme 
UK Statistics Authority,Office for National Statistics,24-Jan-19,Contractors,National Accounts and Economic Statistics,Concept Information Technology Ltd T/A Concept Resourcing,120958,"2,585.82", Information Management Services, Large , Programme 
UK Statistics Authority,Office for National Statistics,24-Jan-19,IT Contractual,Digital Services and Technology,Concept Information Technology Ltd T/A Concept Resourcing,120958,"10,812.00", Information Management Services, Large , Programme 
UK Statistics Authority,Office for National Statistics,24-Jan-19,IT Contractual,Digital Services and Technology,Concept Information Technology Ltd T/A Concept Resourcing,120958,"15,300.00", Information Management Services, Large , Programme 
UK Statistics Authority,Office for National Statistics,24-Jan-19,Short-Term Contract and Agency Staff,Economic Statistics - Transformation,Concept Information Technology Ltd T/A Concept Resourcing,120958,"3,054.74", Information Management Services, Large , Programme 
UK Statistics Authority,Office for National Statistics,24-Jan-19,Short-Term Contract and Agency Staff,Economic Statistics - Transformation,Concept Information Technology Ltd T/A Concept Resourcing,120958,"4,562.02", Information Management Services, Large , Programme 
UK Statistics Authority,Office for National Statistics,24-Jan-19,Short-Term Contract and Agency Staff,Economic Statistics - Transformation,Concept Information Technology Ltd T/A Concept Resourcing,120958,"4,363.19", Information Management Services, Large , Programme 
UK Statistics Authority,Office for National Statistics,24-Jan-19,Short-Term Contract and Agency Staff,Economic Statistics - Transformation,Concept Information Technology Ltd T/A Concept Resourcing,120958,"4,389.00", Information Management Services, Large , Programme 
UK Statistics Authority,Office for National Statistics,24-Jan-19,Short-Term Contract and Agency Staff,Economic Statistics - Transformation,Concept Information Technology Ltd T/A Concept Resourcing,120958,"12,924.14", Information Management Services, Large , Programme 
UK Statistics Authority,Office for National Statistics,24-Jan-19,Short-Term Contract and Agency Staff,"Methods, Data and Research",Concept Information Technology Ltd T/A Concept Resourcing,120958,"4,235.28", Information Management Services, Large , Programme 
UK Statistics Authority,Office for National Statistics,24-Jan-19,Short-Term Contract and Agency Staff,"Methods, Data and Research",Concept Information Technology Ltd T/A Concept Resourcing,120958,"3,568.15", Information Management Services, Large , Programme 
UK Statistics Authority,Office for National Statistics,24-Jan-19,Short-Term Contract and Agency Staff,National Accounts and Economic Statistics,Concept Information Technology Ltd T/A Concept Resourcing,120958,"1,290.28", Information Management Services, Large , Programme 
UK Statistics Authority,Office for National Statistics,24-Jan-19,Short-Term Contract and Agency Staff,National Accounts and Economic Statistics,Concept Information Technology Ltd T/A Concept Resourcing,120958,"3,965.81", Information Management Services, Large , Programme 
UK Statistics Authority,Office for National Statistics,24-Jan-19,Short-Term Contract and Agency Staff,National Accounts and Economic Statistics,Concept Information Technology Ltd T/A Concept Resourcing,120958,"2,228.64", Information Management Services, Large , Programme 
UK Statistics Authority,Office for National Statistics,24-Jan-19,Short-Term Contract and Agency Staff,National Accounts and Economic Statistics,Concept Information Technology Ltd T/A Concept Resourcing,120958,"13,029.57", Information Management Services, Large , Programme 
UK Statistics Authority,Office for National Statistics,24-Jan-19,Short-Term Contract and Agency Staff,National Accounts and Economic Statistics,Concept Information Technology Ltd T/A Concept Resourcing,120958,"7,536.65", Information Management Services, Large , Programme 
UK Statistics Authority,Office for National Statistics,24-Jan-19,Short-Term Contract and Agency Staff,National Accounts and Economic Statistics,Concept Information Technology Ltd T/A Concept Resourcing,120958,"3,965.81", Information Management Services, Large , Programme 
UK Statistics Authority,Office for National Statistics,24-Jan-19,Short-Term Contract and Agency Staff,Public Policy Analysis,Concept Information Technology Ltd T/A Concept Resourcing,120958,"1,179.02", Information Management Services, Large , Programme 
UK Statistics Authority,Office for National Statistics,24-Jan-19,Short-Term Contract and Agency Staff,Public Policy Analysis,Concept Information Technology Ltd T/A Concept Resourcing,120958,"2,786.79", Information Management Services, Large , Programme 
UK Statistics Authority,Office for National Statistics,24-Jan-19,Short-Term Contract and Agency Staff,Public Policy Analysis,Concept Information Technology Ltd T/A Concept Resourcing,120958,"2,974.36", Information Management Services, Large , Programme 
UK Statistics Authority,Office for National Statistics,24-Jan-19,Short-Term Contract and Agency Staff,Public Population and Policy - Transformation,Concept Information Technology Ltd T/A Concept Resourcing,120958,"1,990.07", Information Management Services, Large , Programme 
UK Statistics Authority,Office for National Statistics,24-Jan-19,Capital Majpr Works > 25K,People and Business Services,Paramount Office Interiors Ltd,120979,"53,997.58", Major Works Titchfield , SME , Programme 
UK Statistics Authority,Office for National Statistics,24-Jan-19,Capital Monor Works < 25K,People and Business Services,Paramount Office Interiors Ltd,120979,535.42, Major Works Titchfield , SME , Programme 
UK Statistics Authority,Office for National Statistics,24-Jan-19,Major Works over 25K,People and Business Services,Paramount Office Interiors Ltd,120979,"37,099.85", Major Works Titchfield , SME , Programme 
UK Statistics Authority,Office for National Statistics,24-Jan-19,Contractors,Digital Services and Technology,Parity Resources Limited,120980,"10,573.20", Information Management Services, Large , Programme 
UK Statistics Authority,Office for National Statistics,24-Jan-19,Contractors,Digital Services and Technology,Parity Resources Limited,120980,"10,560.00", Information Management Services, Large , Programme 
UK Statistics Authority,Office for National Statistics,24-Jan-19,Contractors,Public Population and Policy - Transformation,Parity Resources Limited,120980,"10,573.20", Information Management Services, Large , Programme 
UK Statistics Authority,Office for National Statistics,24-Jan-19,Contractors,Public Population and Policy - Transformation,Parity Resources Limited,120980,"7,048.80", Information Management Services, Large , Programme 
UK Statistics Authority,Office for National Statistics,24-Jan-19,Contractors,Public Population and Policy - Transformation,Parity Resources Limited,120980,"10,220.76", Information Management Services, Large , Programme 
UK Statistics Authority,Office for National Statistics,24-Jan-19,IT Contractual,Digital Services and Technology,Parity Resources Limited,120980,"11,278.08", Information Management Services, Large , Programme 
UK Statistics Authority,Office for National Statistics,25-Jan-19,Contractors,Economic Statistics - Transformation,Mango Solutions,120997,"13,950.00", Information Mangement Services, SME , Programme 
UK Statistics Authority,Office for National Statistics,25-Jan-19,Contractors,National Accounts and Economic Statistics,Mango Solutions,120997,"62,880.00", Information Mangement Services, SME , Programme 
UK Statistics Authority,Office for National Statistics,25-Jan-19,Recovery of Secondee Costs,"Finance, Planning and Performance",Public Health Wales,121015,"28,087.11", Seconded Staff Cost, SME , Programme 
UK Statistics Authority,Office for National Statistics,28-Jan-19,IT Contractual,Digital Services and Technology,E Synergy Solutions,121243,"12,000.00", Information Management Services , SME , Programme 
UK Statistics Authority,Office for National Statistics,28-Jan-19,IT Contractual,Policy and Communication,E Synergy Solutions,121243,"25,920.00", Information Management Services , SME , Programme 
UK Statistics Authority,Office for National Statistics,28-Jan-19,Incentive,Public Population and Policy - Operations,Park Retail Ltd,121244,"11,245.69", Social Surveys Incentive Vouchers, Large , Programme 
UK Statistics Authority,Office for National Statistics,28-Jan-19,Incentive,Public Population and Policy - Operations,Park Retail Ltd,121244,"71,829.60", Social Surveys Incentive Vouchers, Large , Programme 
UK Statistics Authority,Office for National Statistics,28-Jan-19,Incentive,Public Population and Policy - Operations,Park Retail Ltd,121244,"5,456.73", Social Surveys Incentive Vouchers, Large , Programme 
UK Statistics Authority,Office for National Statistics,28-Jan-19,Incentive,Public Population and Policy - Operations,Park Retail Ltd,121244,"5,633.46", Social Surveys Incentive Vouchers, Large , Programme 
UK Statistics Authority,Office for National Statistics,28-Jan-19,Incentive,Public Population and Policy - Operations,Park Retail Ltd,121244,"8,085.67", Social Surveys Incentive Vouchers, Large , Programme 
UK Statistics Authority,Office for National Statistics,28-Jan-19,Travel and Subsistence,"Finance, Planning and Performance",Corporate Travel Management ,121249,"75,056.70", Travel and Accommodation Booking Service , SME , Programme 
UK Statistics Authority,Office for National Statistics,28-Jan-19,Consultancy,Public Population and Policy - Transformation,Bloom Procurement Services Ltd,121258,"1,528,872.00", Census Service Integration Contract, Large , Programme 
UK Statistics Authority,Office for National Statistics,29-Jan-19,Major Works over 25K,People and Business Services,Vinci Construction UK Limited,121596,"45,000.00", Major Works Titchfield , Large , Programme 
UK Statistics Authority,Office for National Statistics,29-Jan-19,Consultancy,Digital Services and Technology,SCC,121598,220.5, Information Management Services, Large , Programme 
UK Statistics Authority,Office for National Statistics,29-Jan-19,ICT,Digital Services and Technology,SCC,121598,"32,019.84", Information Management Services, Large , Programme 
UK Statistics Authority,Office for National Statistics,29-Jan-19,IT Contractual,Digital Services and Technology,SCC,121598,"58,910.16", Information Management Services, Large , Programme 
UK Statistics Authority,Office for National Statistics,29-Jan-19,IT Management and Change,Digital Services and Technology,SCC,121598,"6,620.89", Information Management Services, Large , Programme 
UK Statistics Authority,Office for National Statistics,29-Jan-19,IT Purchase > 2K,Digital Services and Technology,SCC,121598,"14,504.50", Information Management Services, Large , Programme 
UK Statistics Authority,Office for National Statistics,29-Jan-19,Telecommunications,Digital Services and Technology,BT Global Services,121599,"49,105.91", BT Cloud Services, Large , Programme 
UK Statistics Authority,Office for National Statistics,29-Jan-19,Telecommunications,Public Policy Analysis,BT Global Services,121599,190.61, BT Cloud Services, Large , Programme 
UK Statistics Authority,Office for National Statistics,29-Jan-19,Surveys,Public Population and Policy - Transformation,Ipsos MORI,121603,"264,960.00", Statistical Services, Large , Programme 
UK Statistics Authority,Office for National Statistics,29-Jan-19,Contractors,Digital Services and Technology,Medley Business Solutions Ltd,121605,"14,103.51", Information Mangement Services, Large , Programme 
UK Statistics Authority,Office for National Statistics,29-Jan-19,Contractors,Digital Services and Technology,Medley Business Solutions Ltd,121605,79.69, Information Management Services, Large , Programme 
UK Statistics Authority,Office for National Statistics,29-Jan-19,IT Contractual,Digital Services and Technology,Medley Business Solutions Ltd,121605,"10,929.60", Information Mangement Services, Large , Programme 
UK Statistics Authority,Office for National Statistics,29-Jan-19,Consultancy,Economic Statistics - Transformation,National Institute of Economic and Social Research,121607,"68,868.00", Information Mangement Services, SME , Programme 
UK Statistics Authority,Office for National Statistics,29-Jan-19,ICT,Digital Services and Technology,ServiceNow,121608,"57,168.00", Software Licence and Maintenance, Large , Programme 
UK Statistics Authority,Office for National Statistics,29-Jan-19,Consultancy,Digital Services and Technology,CSC Computer Sciences,121610,"36,000.00", Information Management Services, Large , Programme 
UK Statistics Authority,Office for National Statistics,29-Jan-19,Marketing and Procurement Services,Public Population and Policy - Operations,HH Associates Ltd,121615,"54,000.00", Census Print and Post Out Contract, SME , Programme 
UK Statistics Authority,Office for National Statistics,29-Jan-19,Contractors,National Accounts and Economic Statistics,Mango Solutions,121617,"34,200.00", Information Mangement Services, SME , Programme 
UK Statistics Authority,Office for National Statistics,29-Jan-19,Newport Vouchers,Survey Management,NatCen Social Research,121619,"13,374.81", Statistical Services, Large , Programme 
UK Statistics Authority,Office for National Statistics,29-Jan-19,Surveys,Public Population and Policy - Operations,NatCen Social Research,121619,"237,186.90", Statistical Services, Large , Programme 
